[Event "Early-Titled-Tuesday-Blitz-February-20-2024"]
[Site "Chess.com"]
[Date "2024.02.20"]
[Round "6"]
[White "Rakhmanov_Aleksandr"]
[Black "Kumi29"]
[Result "0-1"]
[WhiteElo "2861"]
[BlackElo "2631"]
[TimeControl "180+1"]
[EndTime "9:10:41 PST"]
[Termination "Kumi29 won on time"]

1. c4 {[%clk 0:03:00.9]} 1... e5 {[%clk 0:02:58.7]} 2. Nf3 {[%clk 0:02:59.8]}
2... Nc6 {[%clk 0:02:55.2]} 3. d4 {[%clk 0:03:00.1]} 3... exd4 {[%clk
0:02:55.4]} 4. Nxd4 {[%clk 0:03:01]} 4... Qh4 {[%clk 0:02:55.2]} 5. Nb5 {[%clk
0:02:44.2]} 5... Bc5 {[%clk 0:02:42.4]} 6. e3 {[%clk 0:02:20.7]} 6... Qd8 {[%clk
0:02:31.8]} 7. N1c3 {[%clk 0:02:12.6]} 7... a6 {[%clk 0:02:31.9]} 8. Nd4 {[%clk
0:02:13.3]} 8... Nf6 {[%clk 0:02:28.9]} 9. Nb3 {[%clk 0:01:57.7]} 9... Bb4
{[%clk 0:02:26.5]} 10. Bd2 {[%clk 0:01:57.6]} 10... O-O {[%clk 0:02:25.1]} 11.
Nd5 {[%clk 0:01:54]} 11... Nxd5 {[%clk 0:01:58.6]} 12. cxd5 {[%clk 0:01:53.9]}
12... Bxd2+ {[%clk 0:01:58.9]} 13. Qxd2 {[%clk 0:01:49.9]} 13... Ne5 {[%clk
0:01:59.1]} 14. d6 {[%clk 0:01:10.4]} 14... cxd6 {[%clk 0:01:59]} 15. Qxd6
{[%clk 0:01:06.1]} 15... Re8 {[%clk 0:01:57.8]} 16. Be2 {[%clk 0:00:51.1]} 16...
b6 {[%clk 0:01:49.7]} 17. Nd4 {[%clk 0:00:18.7]} 17... Bb7 {[%clk 0:01:47.4]}
18. Nf3 {[%clk 0:00:19.3]} 18... Nxf3+ {[%clk 0:01:38.9]} 19. Bxf3 {[%clk
0:00:14.4]} 19... Bxf3 {[%clk 0:01:28.9]} 20. gxf3 {[%clk 0:00:15.3]} 20... Qh4
{[%clk 0:01:29]} 21. Ke2 {[%clk 0:00:14.3]} 21... Rac8 {[%clk 0:01:22.8]} 22.
Rac1 {[%clk 0:00:13.9]} 22... Qa4 {[%clk 0:01:02.3]} 23. a3 {[%clk 0:00:04.8]}
23... Qb5+ {[%clk 0:01:01.4]} 24. Qd3 {[%clk 0:00:04]} 24... Qxb2+ {[%clk
0:00:59.5]} 25. Qd2 {[%clk 0:00:04.7]} 25... Qxa3 {[%clk 0:00:56.1]} 26. Qxd7
{[%clk 0:00:02.6]} 26... Rcd8 {[%clk 0:00:54.9]} 27. Qc6 {[%clk 0:00:02.5]}
27... Qd3+ {[%clk 0:00:49]} 28. Ke1 {[%clk 0:00:03.1]} 28... h5 {[%clk
0:00:41.8]} 29. Rg1 {[%clk 0:00:03.3]} 29... h4 {[%clk 0:00:36.6]} 30. Qc3
{[%clk 0:00:03.6]} 30... g6 {[%clk 0:00:27.7]} 31. Qxd3 {[%clk 0:00:02.9]} 31...
Rxd3 {[%clk 0:00:27.8]} 32. Rc6 {[%clk 0:00:03.2]} 32... Rb3 {[%clk 0:00:26.5]}
33. Rg4 {[%clk 0:00:03.2]} 33... a5 {[%clk 0:00:17.8]} 34. f4 {[%clk 0:00:03.2]}
34... a4 {[%clk 0:00:17.3]} 35. f5 {[%clk 0:00:03.9]} 35... Ra8 {[%clk
0:00:10.2]} 36. fxg6 {[%clk 0:00:03.9]} 36... fxg6 {[%clk 0:00:05.7]} 37. Rcxg6+
{[%clk 0:00:02.6]} 37... Kf7 {[%clk 0:00:06.1]} 38. Rg7+ {[%clk 0:00:03.1]}
38... Ke6 {[%clk 0:00:06.7]} 39. R7g6+ {[%clk 0:00:02.6]} 39... Kd7 {[%clk
0:00:06]} 40. Rg7+ {[%clk 0:00:02.9]} 40... Kc6 {[%clk 0:00:06.3]} 41. R4g6+
{[%clk 0:00:03.5]} 41... Kb5 {[%clk 0:00:06.2]} 42. Rg5+ {[%clk 0:00:04.1]}
42... Ka6 {[%clk 0:00:05.6]} 43. Kd2 {[%clk 0:00:04.3]} 43... a3 {[%clk
0:00:05.1]} 44. Rg1 {[%clk 0:00:03.7]} 44... Rb2+ {[%clk 0:00:04.9]} 45. Kc3
{[%clk 0:00:03.7]} 45... Rxf2 {[%clk 0:00:05.2]} 46. Ra1 {[%clk 0:00:03.2]}
46... a2 {[%clk 0:00:05.3]} 47. Kb3 {[%clk 0:00:03.5]} 47... Rxh2 {[%clk
0:00:05.3]} 48. Rg4 {[%clk 0:00:03.5]} 48... Kb5 {[%clk 0:00:04.9]} 49. Rb4+
{[%clk 0:00:02.5]} 49... Kc5 {[%clk 0:00:04.7]} 50. Rc4+ {[%clk 0:00:03.1]}
50... Kd5 {[%clk 0:00:05]} 51. Rd4+ {[%clk 0:00:03.6]} 51... Ke5 {[%clk
0:00:05.6]} 52. Rb4 {[%clk 0:00:03.9]} 52... Rd8 {[%clk 0:00:05.3]} 53. Rxb6
{[%clk 0:00:03.8]} 53... Rd3+ {[%clk 0:00:05.1]} 54. Kc4 {[%clk 0:00:04.3]}
54... Rxe3 {[%clk 0:00:05.2]} 55. Rb8 {[%clk 0:00:04.7]} 55... Kf4 {[%clk
0:00:05.3]} 56. Rf8+ {[%clk 0:00:05]} 56... Kg3 {[%clk 0:00:05.2]} 57. Rg8+
{[%clk 0:00:05.7]} 57... Kh3 {[%clk 0:00:05.7]} 58. Kb4 {[%clk 0:00:05.2]} 58...
Rg3 {[%clk 0:00:05.9]} 59. Ra8 {[%clk 0:00:05.2]} 59... Rg4+ {[%clk 0:00:06.2]}
60. Kc3 {[%clk 0:00:05.2]} 60... Rhg2 {[%clk 0:00:06.7]} 61. Kd3 {[%clk
0:00:05.5]} 61... R2g3+ {[%clk 0:00:07.3]} 62. Ke2 {[%clk 0:00:06.1]} 62... Kh2
{[%clk 0:00:07.9]} 63. R8xa2 {[%clk 0:00:04.9]} 63... Rg2+ {[%clk 0:00:08.1]}
64. Kf3 {[%clk 0:00:05.5]} 64... Rg3+ {[%clk 0:00:07.8]} 65. Kf4 {[%clk
0:00:05.9]} 65... h3 {[%clk 0:00:07.8]} 66. Ra3 {[%clk 0:00:03.7]} 66... Rf2+
{[%clk 0:00:06.5]} 67. Ke4 {[%clk 0:00:04.2]} 67... Rxa3 {[%clk 0:00:06.1]} 68.
Rxa3 {[%clk 0:00:05.1]} 68... Kg2 {[%clk 0:00:06.7]} 69. Ra8 {[%clk 0:00:02.8]}
69... h2 {[%clk 0:00:07.2]} 70. Rg8+ {[%clk 0:00:03.5]} 70... Kf1 {[%clk
0:00:07.3]} 71. Rh8 {[%clk 0:00:03.8]} 71... Kg1 {[%clk 0:00:07.3]} 72. Rg8+
{[%clk 0:00:04.3]} 72... Rg2 {[%clk 0:00:07.5]} 73. Ra8 {[%clk 0:00:05.1]} 73...
h1=Q {[%clk 0:00:07.8]} 74. Ra1+ {[%clk 0:00:05.6]} 74... Kh2 {[%clk 0:00:08.4]}
75. Rxh1+ {[%clk 0:00:06]} 75... Kxh1 {[%clk 0:00:09.3]} 0-1

[Event "Early-Titled-Tuesday-Blitz-February-20-2024"]
[Site "Chess.com"]
[Date "2024.02.20"]
[Round "6"]
[White "BallottiLuca"]
[Black "aldebaran52"]
[Result "0-1"]
[WhiteElo "2390"]
[BlackElo "2199"]
[TimeControl "180+1"]
[EndTime "9:10:41 PST"]
[Termination "aldebaran52 won on time"]

1. e4 {[%clk 0:03:00.9]} 1... c5 {[%clk 0:02:59.3]} 2. c3 {[%clk 0:03:01.4]}
2... Nf6 {[%clk 0:02:58.1]} 3. e5 {[%clk 0:03:02]} 3... Nd5 {[%clk 0:02:58.1]}
4. d4 {[%clk 0:03:01.8]} 4... cxd4 {[%clk 0:02:58.7]} 5. Nf3 {[%clk 0:03:01.1]}
5... d6 {[%clk 0:02:57.3]} 6. Qxd4 {[%clk 0:02:57.4]} 6... e6 {[%clk 0:02:53.3]}
7. Nbd2 {[%clk 0:02:55.7]} 7... Nc6 {[%clk 0:02:53.1]} 8. Bb5 {[%clk 0:02:54.5]}
8... Bd7 {[%clk 0:02:52.2]} 9. Bxc6 {[%clk 0:02:53.9]} 9... Bxc6 {[%clk
0:02:52.7]} 10. Nc4 {[%clk 0:02:52.6]} 10... dxe5 {[%clk 0:02:42.6]} 11. Ncxe5
{[%clk 0:02:53.5]} 11... Rc8 {[%clk 0:02:38.6]} 12. Nxc6 {[%clk 0:02:34.8]}
12... Rxc6 {[%clk 0:02:34.1]} 13. Ne5 {[%clk 0:02:34.2]} 13... Rc7 {[%clk
0:02:21.3]} 14. Qa4+ {[%clk 0:02:30.6]} 14... Ke7 {[%clk 0:02:03.8]} 15. O-O
{[%clk 0:02:23.1]} 15... f6 {[%clk 0:02:04]} 16. Rd1 {[%clk 0:02:01.1]} 16...
Qe8 {[%clk 0:01:36.6]} 17. Qxe8+ {[%clk 0:01:19.6]} 17... Kxe8 {[%clk
0:01:36.6]} 18. Nf3 {[%clk 0:01:20.2]} 18... Bd6 {[%clk 0:01:27.1]} 19. Nd4
{[%clk 0:01:19]} 19... Re7 {[%clk 0:01:15]} 20. Be3 {[%clk 0:01:06.4]} 20...
Nxe3 {[%clk 0:01:11.2]} 21. fxe3 {[%clk 0:01:07.3]} 21... Bc5 {[%clk 0:01:04.5]}
22. Kf2 {[%clk 0:01:03.4]} 22... Kf7 {[%clk 0:01:02.9]} 23. b4 {[%clk 0:00:58]}
23... Bb6 {[%clk 0:01:02.4]} 24. Nb5 {[%clk 0:00:54.4]} 24... g6 {[%clk
0:00:47.5]} 25. c4 {[%clk 0:00:54.5]} 25... a6 {[%clk 0:00:43.9]} 26. Nd6+
{[%clk 0:00:54.4]} 26... Kg7 {[%clk 0:00:44.4]} 27. c5 {[%clk 0:00:55.1]} 27...
Bc7 {[%clk 0:00:44]} 28. g3 {[%clk 0:00:52.5]} 28... Bxd6 {[%clk 0:00:44.1]} 29.
Rxd6 {[%clk 0:00:48.6]} 29... Rc8 {[%clk 0:00:39.4]} 30. Rad1 {[%clk 0:00:48.5]}
30... Kf7 {[%clk 0:00:35.9]} 31. a3 {[%clk 0:00:48.4]} 31... a5 {[%clk
0:00:35.5]} 32. Kf3 {[%clk 0:00:42.2]} 32... axb4 {[%clk 0:00:35.6]} 33. axb4
{[%clk 0:00:43.1]} 33... g5 {[%clk 0:00:35]} 34. h3 {[%clk 0:00:42.3]} 34... Ra8
{[%clk 0:00:31.7]} 35. Rd7 {[%clk 0:00:41]} 35... Ra4 {[%clk 0:00:31.1]} 36. b5
{[%clk 0:00:37.2]} 36... Rb4 {[%clk 0:00:30.5]} 37. b6 {[%clk 0:00:23.1]} 37...
Rc4 {[%clk 0:00:30.4]} 38. Rc7 {[%clk 0:00:09.2]} 38... Rxc7 {[%clk 0:00:18.4]}
39. bxc7 {[%clk 0:00:10.1]} 39... Rxc5 {[%clk 0:00:18.2]} 40. Rd7+ {[%clk
0:00:10.8]} 40... Kg6 {[%clk 0:00:18.5]} 41. h4 {[%clk 0:00:11.2]} 41... gxh4
{[%clk 0:00:16]} 42. gxh4 {[%clk 0:00:12.1]} 42... h5 {[%clk 0:00:13.2]} 43. Ke4
{[%clk 0:00:09.5]} 43... b5 {[%clk 0:00:13]} 44. Kd4 {[%clk 0:00:10]} 44... Rc1
{[%clk 0:00:12]} 45. e4 {[%clk 0:00:05.7]} 45... b4 {[%clk 0:00:12.5]} 46. c8=Q
{[%clk 0:00:03.5]} 46... Rxc8 {[%clk 0:00:11.1]} 47. Rb7 {[%clk 0:00:04.4]}
47... Rd8+ {[%clk 0:00:10.3]} 48. Ke3 {[%clk 0:00:04.4]} 48... Ra8 {[%clk
0:00:07.6]} 49. Rxb4 {[%clk 0:00:04.8]} 49... Ra3+ {[%clk 0:00:08.3]} 50. Kf2
{[%clk 0:00:02.6]} 50... Rc3 {[%clk 0:00:08.9]} 51. Rd4 {[%clk 0:00:02.4]} 51...
f5 {[%clk 0:00:09.2]} 52. exf5+ {[%clk 0:00:02.4]} 52... Kxf5 {[%clk 0:00:09.8]}
53. Kg2 {[%clk 0:00:02.8]} 53... e5 {[%clk 0:00:10.3]} 54. Rd1 {[%clk 0:00:03]}
54... e4 {[%clk 0:00:10.8]} 55. Kf2 {[%clk 0:00:03.1]} 55... Kf4 {[%clk
0:00:11]} 56. Rd8 {[%clk 0:00:02.5]} 56... Rc2+ {[%clk 0:00:11.5]} 57. Kf1
{[%clk 0:00:02.2]} 57... Ke3 {[%clk 0:00:11.7]} 58. Re8 {[%clk 0:00:01.7]} 58...
Kf3 {[%clk 0:00:11.5]} 59. Kg1 {[%clk 0:00:01.9]} 59... Kg3 {[%clk 0:00:10.8]}
60. Kh1 {[%clk 0:00:01.9]} 60... Kh3 {[%clk 0:00:10.3]} 61. Kg1 {[%clk
0:00:02.1]} 61... Kg3 {[%clk 0:00:10]} 62. Rg8+ {[%clk 0:00:02.6]} 62... Kf3
{[%clk 0:00:09.7]} 63. Rf8+ {[%clk 0:00:02.9]} 63... Ke2 {[%clk 0:00:10.3]} 64.
Rf5 {[%clk 0:00:02.4]} 64... e3 {[%clk 0:00:10.7]} 65. Rxh5 {[%clk 0:00:02.6]}
65... Rc1+ {[%clk 0:00:10.8]} 66. Kg2 {[%clk 0:00:02.8]} 66... Ke1 {[%clk
0:00:11.5]} 67. Re5 {[%clk 0:00:02.6]} 67... e2 {[%clk 0:00:12.1]} 68. h5 {[%clk
0:00:03.2]} 68... Rc4 {[%clk 0:00:12]} 69. h6 {[%clk 0:00:02.7]} 69... Rh4
{[%clk 0:00:12.4]} 70. Re6 {[%clk 0:00:01.9]} 70... Rh5 {[%clk 0:00:12.2]} 71.
Kg3 {[%clk 0:00:01.6]} 71... Rh1 {[%clk 0:00:11.6]} 72. Kg2 {[%clk 0:00:01.8]}
72... Rh5 {[%clk 0:00:10.8]} 73. Kf3 {[%clk 0:00:02.3]} 73... Rf5+ {[%clk
0:00:10.8]} 74. Kg2 {[%clk 0:00:02.6]} 74... Kd1 {[%clk 0:00:10]} 75. Rd6+
{[%clk 0:00:02.2]} 75... Kc2 {[%clk 0:00:09.5]} 76. Re6 {[%clk 0:00:01.7]} 76...
Kd2 {[%clk 0:00:09.6]} 77. h7 {[%clk 0:00:01.8]} 77... Rh5 {[%clk 0:00:08.7]}
0-1

[Event "Early-Titled-Tuesday-Blitz-February-20-2024"]
[Site "Chess.com"]
[Date "2024.02.20"]
[Round "6"]
[White "Salem-AR"]
[Black "DavidGavrilescu18"]
[Result "1-0"]
[WhiteElo "2989"]
[BlackElo "2765"]
[TimeControl "180+1"]
[EndTime "9:10:48 PST"]
[Termination "Salem-AR won by resignation"]

1. d4 {[%clk 0:03:00.9]} 1... d5 {[%clk 0:03:00]} 2. Nf3 {[%clk 0:03:01.3]} 2...
Nf6 {[%clk 0:03:00.1]} 3. Bf4 {[%clk 0:03:01.9]} 3... c5 {[%clk 0:03:00.3]} 4.
e3 {[%clk 0:03:02.1]} 4... Nc6 {[%clk 0:03:00.9]} 5. Nbd2 {[%clk 0:03:02.3]}
5... cxd4 {[%clk 0:03:00.7]} 6. exd4 {[%clk 0:03:02.2]} 6... Bf5 {[%clk
0:03:01.4]} 7. c3 {[%clk 0:02:59.4]} 7... e6 {[%clk 0:03:01.9]} 8. Qb3 {[%clk
0:02:55.5]} 8... Bd6 {[%clk 0:03:02]} 9. Bg5 {[%clk 0:02:46.1]} 9... Qc7 {[%clk
0:02:49.9]} 10. Nh4 {[%clk 0:02:40.6]} 10... Bg6 {[%clk 0:02:29.2]} 11. Nxg6
{[%clk 0:02:29.3]} 11... hxg6 {[%clk 0:02:30.1]} 12. h4 {[%clk 0:02:28]} 12...
Rb8 {[%clk 0:02:25.2]} 13. Be2 {[%clk 0:02:17.8]} 13... Bf4 {[%clk 0:02:14.5]}
14. Bxf4 {[%clk 0:02:03.4]} 14... Qxf4 {[%clk 0:02:15.4]} 15. g3 {[%clk
0:02:03.5]} 15... Qc7 {[%clk 0:02:15.8]} 16. Kf1 {[%clk 0:01:58.6]} 16... g5
{[%clk 0:02:13.8]} 17. Nf3 {[%clk 0:01:56.6]} 17... gxh4 {[%clk 0:02:13.9]} 18.
Nxh4 {[%clk 0:01:54]} 18... g5 {[%clk 0:02:10.2]} 19. Bf3 {[%clk 0:01:35.9]}
19... gxh4 {[%clk 0:02:09]} 20. Re1 {[%clk 0:01:36.8]} 20... Ke7 {[%clk
0:02:06.7]} 21. gxh4 {[%clk 0:01:34.1]} 21... Kd7 {[%clk 0:01:50.1]} 22. Re3
{[%clk 0:01:30.4]} 22... Qf4 {[%clk 0:01:44.9]} 23. h5 {[%clk 0:01:30.9]} 23...
Ng4 {[%clk 0:01:40.3]} 24. Bxg4 {[%clk 0:01:26]} 24... Qxg4 {[%clk 0:01:41.2]}
25. h6 {[%clk 0:01:25.3]} 25... Kc7 {[%clk 0:01:32.4]} 26. h7 {[%clk 0:01:21.6]}
26... Qf5 {[%clk 0:01:17.7]} 27. Reh3 {[%clk 0:01:21.7]} 27... f6 {[%clk
0:01:14.5]} 28. Qd1 {[%clk 0:01:15.6]} 28... Rbd8 {[%clk 0:01:10.5]} 29. Rh5
{[%clk 0:01:13.2]} 29... Qg6 {[%clk 0:01:08.6]} 30. Rh6 {[%clk 0:01:09.3]} 30...
Qf7 {[%clk 0:01:03.7]} 31. Qf3 {[%clk 0:01:08.9]} 31... Rdf8 {[%clk 0:00:57.8]}
32. b4 {[%clk 0:01:06]} 32... Ne7 {[%clk 0:00:57.5]} 33. Qf4+ {[%clk 0:00:59.6]}
33... Kc8 {[%clk 0:00:57.6]} 34. R6h3 {[%clk 0:00:48.7]} 34... Nf5 {[%clk
0:00:56.4]} 35. a4 {[%clk 0:00:43.7]} 35... Qc7 {[%clk 0:00:55]} 36. Qd2 {[%clk
0:00:42.3]} 36... Rf7 {[%clk 0:00:54.9]} 37. Qe2 {[%clk 0:00:40.2]} 37... Qc4
{[%clk 0:00:49.1]} 38. Qxc4+ {[%clk 0:00:38.9]} 38... dxc4 {[%clk 0:00:50]} 39.
Ke2 {[%clk 0:00:36.5]} 39... Kd7 {[%clk 0:00:47.2]} 40. Kf3 {[%clk 0:00:36.5]}
40... Nd6 {[%clk 0:00:47.1]} 41. Kf4 {[%clk 0:00:35.9]} 41... Rg7 {[%clk
0:00:46.4]} 42. Rh6 {[%clk 0:00:35.5]} 42... Ke7 {[%clk 0:00:46.4]} 43. b5
{[%clk 0:00:33.5]} 43... Nf7 {[%clk 0:00:46.7]} 44. R6h5 {[%clk 0:00:21.7]}
44... Ng5 {[%clk 0:00:46.3]} 45. d5 {[%clk 0:00:20.4]} 45... Rhxh7 {[%clk
0:00:45.9]} 46. dxe6 {[%clk 0:00:16.9]} 46... Rxh5 {[%clk 0:00:44.7]} 47. Rxh5
{[%clk 0:00:17.8]} 47... Nxe6+ {[%clk 0:00:44.9]} 48. Ke4 {[%clk 0:00:16.1]}
48... Rg4+ {[%clk 0:00:32.1]} 49. Ke3 {[%clk 0:00:16.3]} 49... Ng5 {[%clk
0:00:31.3]} 50. Rh8 {[%clk 0:00:15.8]} 50... Re4+ {[%clk 0:00:30.5]} 51. Kd2
{[%clk 0:00:16.6]} 51... Nf3+ {[%clk 0:00:29.5]} 52. Kd1 {[%clk 0:00:15.1]}
52... Re1+ {[%clk 0:00:29.6]} 53. Kc2 {[%clk 0:00:15.9]} 53... Re2+ {[%clk
0:00:30.2]} 54. Kc1 {[%clk 0:00:16.7]} 54... Rxf2 {[%clk 0:00:29.7]} 55. Rb8
{[%clk 0:00:17.5]} 55... Ne5 {[%clk 0:00:25.4]} 56. Rxb7+ {[%clk 0:00:17.9]}
56... Kd6 {[%clk 0:00:26]} 57. Rxa7 {[%clk 0:00:18.3]} 57... Nd3+ {[%clk
0:00:26.5]} 58. Kd1 {[%clk 0:00:18]} 58... Rb2 {[%clk 0:00:24.7]} 59. Rf7 {[%clk
0:00:16.1]} 59... Ke5 {[%clk 0:00:24.5]} 60. Rb7 {[%clk 0:00:13.2]} 60... Kf4
{[%clk 0:00:22.2]} 61. a5 {[%clk 0:00:12]} 61... Ke3 {[%clk 0:00:20.1]} 62. Re7+
{[%clk 0:00:11.6]} 62... Ne5 {[%clk 0:00:20.8]} 63. b6 {[%clk 0:00:11.3]} 63...
Kd3 {[%clk 0:00:21.5]} 64. Ke1 {[%clk 0:00:08.1]} 64... Kxc3 {[%clk 0:00:20.4]}
65. b7 {[%clk 0:00:08.7]} 65... Nc6 {[%clk 0:00:20.8]} 66. a6 {[%clk 0:00:06.7]}
66... Rb6 {[%clk 0:00:15.1]} 67. Re6 {[%clk 0:00:05.6]} 67... Rb1+ {[%clk
0:00:15.1]} 68. Kf2 {[%clk 0:00:05.5]} 68... Na7 {[%clk 0:00:16]} 69. Re8 {[%clk
0:00:05]} 69... Nc6 {[%clk 0:00:15.4]} 70. Rc8 {[%clk 0:00:05.6]} 70... Rb2+
{[%clk 0:00:12.8]} 71. Kg3 {[%clk 0:00:05.5]} 71... Na7 {[%clk 0:00:02.6]} 72.
b8=Q {[%clk 0:00:05.9]} 72... Rxb8 {[%clk 0:00:02.7]} 73. Rxb8 {[%clk
0:00:06.8]} 73... Kd4 {[%clk 0:00:03.3]} 74. Rb7 {[%clk 0:00:07.5]} 74... Nc6
{[%clk 0:00:03.8]} 75. Rc7 {[%clk 0:00:08]} 75... Nb8 {[%clk 0:00:01.5]} 76. a7
{[%clk 0:00:07.9]} 76... Na6 {[%clk 0:00:02.4]} 77. Rd7+ {[%clk 0:00:08.3]}
77... Kc3 {[%clk 0:00:02.9]} 78. a8=Q {[%clk 0:00:08.9]} 78... Nc5 {[%clk
0:00:03.5]} 79. Qa5+ {[%clk 0:00:09.1]} 1-0

[Event "Early-Titled-Tuesday-Blitz-February-20-2024"]
[Site "Chess.com"]
[Date "2024.02.20"]
[Round "6"]
[White "FARIZA2018"]
[Black "ckgchess"]
[Result "1/2-1/2"]
[WhiteElo "2590"]
[BlackElo "2861"]
[TimeControl "180+1"]
[EndTime "9:11:00 PST"]
[Termination "Game drawn by repetition"]

1. e4 {[%clk 0:03:00.9]} 1... e5 {[%clk 0:02:58.8]} 2. Nf3 {[%clk 0:03:01.1]}
2... Nf6 {[%clk 0:02:59.4]} 3. Nxe5 {[%clk 0:03:00.9]} 3... d5 {[%clk
0:02:59.5]} 4. exd5 {[%clk 0:02:53.6]} 4... Qxd5 {[%clk 0:03:00.4]} 5. d4 {[%clk
0:02:41.8]} 5... Nc6 {[%clk 0:03:00.2]} 6. Nxc6 {[%clk 0:02:35]} 6... Qxc6
{[%clk 0:03:01.1]} 7. Nc3 {[%clk 0:02:32.7]} 7... Bb4 {[%clk 0:03:01]} 8. Qf3
{[%clk 0:01:53.9]} 8... Qxf3 {[%clk 0:02:59]} 9. gxf3 {[%clk 0:01:54.1]} 9...
O-O {[%clk 0:02:59.9]} 10. Be3 {[%clk 0:01:41.3]} 10... Nd5 {[%clk 0:02:55]} 11.
Kd2 {[%clk 0:01:40.9]} 11... Ne7 {[%clk 0:02:44.4]} 12. a3 {[%clk 0:01:37.6]}
12... Bd6 {[%clk 0:02:41.5]} 13. Ne4 {[%clk 0:01:31.9]} 13... Rd8 {[%clk
0:02:39.4]} 14. Nxd6 {[%clk 0:01:30.8]} 14... Rxd6 {[%clk 0:02:40.3]} 15. Bd3
{[%clk 0:01:28.6]} 15... Bf5 {[%clk 0:02:27.5]} 16. c3 {[%clk 0:01:20.3]} 16...
Rad8 {[%clk 0:02:19.5]} 17. Rad1 {[%clk 0:01:19.5]} 17... Bxd3 {[%clk
0:02:05.1]} 18. Kxd3 {[%clk 0:01:19.6]} 18... c5 {[%clk 0:02:05.8]} 19. Ke2
{[%clk 0:01:17.6]} 19... c4 {[%clk 0:01:55.7]} 20. Rhg1 {[%clk 0:01:16.4]} 20...
Nd5 {[%clk 0:01:54.5]} 21. Kd2 {[%clk 0:01:04.6]} 21... f6 {[%clk 0:01:51.7]}
22. Kc2 {[%clk 0:01:03.7]} 22... Kf7 {[%clk 0:01:51.7]} 23. Rde1 {[%clk
0:01:00.9]} 23... Re6 {[%clk 0:01:45.7]} 24. Bd2 {[%clk 0:01:00.3]} 24... Rde8
{[%clk 0:01:43.7]} 25. Kd1 {[%clk 0:00:58.6]} 25... g5 {[%clk 0:01:41]} 26. Rxe6
{[%clk 0:00:56.4]} 26... Rxe6 {[%clk 0:01:41.9]} 27. Re1 {[%clk 0:00:56.2]}
27... Rb6 {[%clk 0:01:42.4]} 28. Kc2 {[%clk 0:00:56.3]} 28... a5 {[%clk
0:01:33.1]} 29. Re4 {[%clk 0:00:50.8]} 29... a4 {[%clk 0:01:27.1]} 30. Bc1
{[%clk 0:00:46.7]} 30... Rd6 {[%clk 0:01:21.7]} 31. Kd1 {[%clk 0:00:45.1]} 31...
Rd8 {[%clk 0:01:17.7]} 32. Ke2 {[%clk 0:00:45]} 32... Rg8 {[%clk 0:01:18]} 33.
Kf1 {[%clk 0:00:42]} 33... Rd8 {[%clk 0:01:12.5]} 34. f4 {[%clk 0:00:39.5]}
34... h6 {[%clk 0:01:02.7]} 35. fxg5 {[%clk 0:00:39]} 35... hxg5 {[%clk
0:01:03.6]} 36. Kg2 {[%clk 0:00:38.8]} 36... Rh8 {[%clk 0:01:01.5]} 37. Kg3
{[%clk 0:00:37.8]} 37... Ne7 {[%clk 0:00:58]} 38. Kg2 {[%clk 0:00:34.6]} 38...
b5 {[%clk 0:00:57.4]} 39. f4 {[%clk 0:00:32.7]} 39... g4 {[%clk 0:00:53.1]} 40.
f5 {[%clk 0:00:31.4]} 40... Rh3 {[%clk 0:00:33.6]} 41. Rxg4 {[%clk 0:00:23.1]}
41... Rd3 {[%clk 0:00:34.1]} 42. Rf4 {[%clk 0:00:23.2]} 42... Rd1 {[%clk
0:00:13.2]} 43. Rf1 {[%clk 0:00:22]} 43... Rd3 {[%clk 0:00:10.8]} 44. h4 {[%clk
0:00:20.1]} 44... b4 {[%clk 0:00:07.8]} 45. axb4 {[%clk 0:00:19.8]} 45... a3
{[%clk 0:00:08.7]} 46. bxa3 {[%clk 0:00:19.3]} 46... Rxc3 {[%clk 0:00:09.3]} 47.
h5 {[%clk 0:00:18.9]} 47... Rc2+ {[%clk 0:00:09.7]} 48. Kg3 {[%clk 0:00:18.6]}
48... c3 {[%clk 0:00:05.9]} 49. h6 {[%clk 0:00:18.5]} 49... Nxf5+ {[%clk
0:00:06.5]} 50. Rxf5 {[%clk 0:00:18.1]} 50... Rxc1 {[%clk 0:00:07.1]} 51. Rc5
{[%clk 0:00:12.7]} 51... c2 {[%clk 0:00:05.3]} 52. Kg2 {[%clk 0:00:12.9]} 52...
Kg6 {[%clk 0:00:06.1]} 53. Rc6 {[%clk 0:00:11.9]} 53... Ra1 {[%clk 0:00:02.5]}
54. Rxc2 {[%clk 0:00:11.9]} 54... Rxa3 {[%clk 0:00:03.3]} 55. Rc6 {[%clk
0:00:11.5]} 55... Rb3 {[%clk 0:00:02.7]} 56. Rb6 {[%clk 0:00:11]} 56... Rd3
{[%clk 0:00:02.8]} 57. Rd6 {[%clk 0:00:08.6]} 57... Rb3 {[%clk 0:00:03.3]} 58.
h7 {[%clk 0:00:05.2]} 58... Kxh7 {[%clk 0:00:03.1]} 59. Rxf6 {[%clk 0:00:05.8]}
59... Rxb4 {[%clk 0:00:03.7]} 60. Rf4 {[%clk 0:00:06.5]} 60... Rb3 {[%clk
0:00:03.4]} 61. Rf3 {[%clk 0:00:06.2]} 61... Rb4 {[%clk 0:00:03.6]} 62. Rd3
{[%clk 0:00:04.2]} 62... Kg6 {[%clk 0:00:04.1]} 63. Kf3 {[%clk 0:00:04.9]} 63...
Kf5 {[%clk 0:00:04.7]} 64. Ke3 {[%clk 0:00:04.9]} 64... Ke6 {[%clk 0:00:04.7]}
65. Rc3 {[%clk 0:00:05.4]} 65... Rb1 {[%clk 0:00:03.8]} 66. Ke4 {[%clk
0:00:05.5]} 66... Re1+ {[%clk 0:00:03.7]} 67. Kd3 {[%clk 0:00:06.1]} 67... Rh1
{[%clk 0:00:04.6]} 68. Rc6+ {[%clk 0:00:05.9]} 68... Kd5 {[%clk 0:00:03.9]} 69.
Rc5+ {[%clk 0:00:06.3]} 69... Kd6 {[%clk 0:00:04.6]} 70. Re5 {[%clk 0:00:06.1]}
70... Rd1+ {[%clk 0:00:04.6]} 71. Ke4 {[%clk 0:00:05.5]} 71... Re1+ {[%clk
0:00:05]} 72. Kf4 {[%clk 0:00:05.9]} 72... Rf1+ {[%clk 0:00:05.2]} 73. Ke3
{[%clk 0:00:06.3]} 73... Re1+ {[%clk 0:00:05.3]} 74. Kf4 {[%clk 0:00:06.8]}
74... Rd1 {[%clk 0:00:05.6]} 75. Ke4 {[%clk 0:00:06.5]} 75... Re1+ {[%clk
0:00:06.1]} 76. Kf5 {[%clk 0:00:06.7]} 76... Rd1 {[%clk 0:00:06]} 77. Ke4 {[%clk
0:00:07.1]} 1/2-1/2